bitfinex/quotes_ETHUSD_20241105
["timestamp","ask_amount","ask_price","bid_price","bid_amount"]
[1730817060826,2.92668775,2464.1,2464.0,0.05565648]
[1730817061154,2.92668775,2464.1,2462.6,3.3818209]
[1730817061155,0.7916,2463.5,2463.0,2.84199]
[1730817061447,2.84121,2463.8,2462.6,0.7997]
[1730817061448,0.08585775,2463.7,2463.3,5.68335]
[1730817061656,0.7916,2463.8,2463.4,2.84152]
[1730817061855,0.7916,2463.8,2463.5,2.84146]
[1730817062023,0.7916,2463.8,2463.7,2.84125]
[1730817062227,0.84065775,2464.1,2463.7,2.84125]
[1730817062538,0.84065775,2464.1,2463.8,2.84111]
[1730817062849,0.08585775,2464.2,2464.0,2.8409]
[1730817063150,0.08585775,2464.2,2464.1,0.05589692]
[1730817063361,2.92661775,2464.2,2463.6,2.84129]
[1730817063655,2.92661775,2464.2,2462.9,0.01]
[1730817063656,2.84113,2463.8,2463.7,0.0562727]
[1730817064027,2.92690775,2463.9,2463.4,2.84157]
[1730817064224,2.84113,2463.8,2463.7,0.0562727]
[1730817064557,2.84113,2463.8,2462.8,4.15976304]
[1730817064558,2.84154,2463.5,2463.0,2.84199]
[1730817064853,0.7913,2463.3,2462.9,2.84216]
[1730817065154,0.87715775,2463.6,2463.0,0.08119991]
[1730817065322,0.87715775,2463.6,2463.2,2.84183]
[1730817065753,0.87715775,2463.6,2463.2,2.84176]
[1730817065923,3.71852775,2463.6,2463.1,2.84193]
[1730817066111,0.87715775,2463.6,2463.1,2.84188]
[1730817066315,3.71858775,2463.6,2462.9,2.8421]
[1730817066515,0.37185878,2463.5,2462.9,2.8421]
[1730817066825,2.92746775,2463.4,2462.9,2.84208]
[1730817067215,0.08585775,2463.4,2462.9,2.84208]
[1730817067858,0.08585775,2463.4,2462.9,5.68418]
[1730817068159,0.08585775,2463.4,2463.0,2.84197]
[1730817068365,0.08585775,2463.5,2462.9,2.84217]
[1730817068520,2.84166,2463.4,2462.9,2.84211]
[1730817068851,2.84208,2463.0,2462.5,2.84256]
[1730817069057,2.84229,2462.8,2462.3,2.84279]
[1730817069360,2.84229,2462.8,2462.0,4.98186304]
[1730817069361,0.08585775,2462.8,2462.6,2.84252]
[1730817069513,2.84207,2463.0,2462.6,2.84252]
[1730817069709,0.37865053,2462.9,2462.2,2.84291]
[1730817069958,0.37865053,2462.9,2462.0,5.2093712]
[1730817070159,0.08585775,2462.9,2462.4,2.84268]
[1730817070366,0.8211,2462.8,2462.2,2.8429]
[1730817070526,0.8211,2462.8,2461.8,2.84336]
[1730817070527,0.08585775,2462.7,2461.8,2.84336]
[1730817070736,0.8211,2462.2,2461.7,2.84355]
[1730817070933,2.92897775,2462.1,2461.6,2.84357]
[1730817071175,2.84346,2461.8,2461.2,7.00383304]
[1730817071452,0.7692,2461.6,2461.4,2.84387]
[1730817071661,0.7692,2461.6,2461.2,2.84404]
[1730817071662,0.08585775,2461.5,2461.2,2.84404]
[1730817071830,0.08585775,2461.5,2461.3,2.84399]
[1730817072030,0.7692,2461.6,2461.3,2.84399]
[1730817072326,0.7692,2461.6,2461.3,2.84395]
[1730817072551,0.08585775,2461.5,2461.1,2.84424]
[1730817072715,0.08585775,2461.5,2461.0,2.84437]
[1730817072915,0.08585775,2461.5,2461.2,2.84412]
[1730817073165,0.01,2462.2,2461.3,3.45469255]
[1730817073166,0.7856,2462.1,2461.3,3.45469255]
[1730817073411,0.08585775,2462.0,2461.3,2.84402]
[1730817073569,2.92906775,2462.0,2461.3,2.84395]
[1730817073962,2.92906775,2462.0,2461.3,2.84394]
[1730817074181,0.08585775,2462.0,2461.5,2.84379]
[1730817074386,0.45731953,2462.0,2461.3,2.84392]
[1730817074707,0.08585775,2462.0,2461.6,2.84359]
[1730817075004,0.91685775,2462.4,2462.1,2.84307]
[1730817075217,0.831,2462.4,2462.1,2.84303]
[1730817075510,0.08585775,2462.3,2462.2,0.05844709]
[1730817075726,4.00928853,2462.3,2462.2,0.05844709]
[1730817076011,4.00928853,2462.3,2461.6,2.84361]
[1730817076012,2.84298,2462.2,2461.6,2.84361]
[1730817076214,1.16641853,2462.3,2461.5,2.8437]
[1730817076215,0.08585775,2462.1,2461.5,2.8437]
[1730817076371,0.08585775,2462.1,2461.7,2.90239755]
[1730817076561,0.08585775,2462.1,2461.7,0.05891755]
[1730817076786,0.08585775,2462.1,2461.8,2.84344]
[1730817077028,0.08585775,2462.1,2461.8,2.84336]
[1730817077222,0.7867,2462.3,2461.9,2.90198934]
[1730817077223,0.08585775,2462.2,2461.9,2.90198934]
[1730817077383,0.7557,2462.7,2462.5,2.84263]
[1730817077571,0.7557,2462.7,2462.6,0.05807085]
[1730817077769,0.7557,2462.7,2461.9,0.7943]
[1730817077770,0.7557,2462.7,2461.9,2.84322]
[1730817077974,0.7557,2462.7,2462.0,0.05863525]
[1730817078316,0.7557,2462.7,2462.4,2.84268]
[1730817078528,0.7557,2462.7,2462.5,2.84255]
[1730817078828,0.7557,2462.7,2462.5,0.0581649]
[1730817078973,0.7919,2463.0,2462.5,0.0581649]
[1730817079176,3.63397,2463.0,2462.5,0.0581649]
[1730817079404,0.08585775,2462.9,2462.5,0.0581649]
[1730817079998,0.08585775,2462.9,2462.6,2.84251]
[1730817080301,0.08585775,2462.9,2462.7,0.05797681]
[1730817080673,0.08585775,2462.9,2462.7,2.8424]
[1730817080895,3.62802,2463.3,2462.8,0.05788278]
[1730817081129,0.08585775,2463.2,2462.8,2.84228]
[1730817081338,0.08585775,2463.2,2462.9,0.05778875]
[1730817081900,0.08585775,2463.2,2462.9,2.84217]
[1730817082092,0.08585775,2463.2,2463.0,0.05836944]
[1730817082909,0.08585775,2463.2,2462.8,2.84225]
[1730817083100,0.08585775,2463.2,2462.9,0.05808966]
[1730817083299,0.08585775,2463.2,2462.9,2.90015966]
[1730817083606,0.08585775,2463.4,2462.9,0.05808966]
[1730817083802,0.08585775,2463.4,2463.1,2.84194]
[1730817084139,2.92752775,2463.4,2463.2,0.05580562]
[1730817084342,0.74485352,2463.4,2463.0,2.84199]
[1730817084635,0.08585775,2463.4,2463.1,0.05589962]
[1730817084934,0.08585775,2463.5,2463.1,2.84192]
[1730817085139,2.92735775,2463.5,2463.2,0.05580562]
[1730817085344,0.08585775,2463.5,2463.0,2.84196]
[1730817085541,0.08585775,2463.5,2463.2,2.84181]
[1730817085847,0.08585775,2463.5,2463.3,0.05571162]
[1730817086019,2.92736775,2463.5,2463.3,0.05571162]
[1730817086221,2.92736775,2463.5,2463.0,5.68394]
[1730817086421,0.08585775,2463.5,2463.4,0.05561764]
[1730817086623,0.08585775,2463.5,2463.4,2.8416]
[1730817086837,2.8411,2463.9,2463.8,2.84113]
[1730817086838,0.08585775,2463.9,2463.8,2.84113]
[1730817087010,0.08585775,2464.1,2464.0,2.84087]
[1730817087209,0.08585775,2464.1,2463.8,0.05524177]
[1730817087439,4.11122153,2464.1,2464.0,0.05505388]
[1730817087656,3.647,2464.0,2463.9,0.05514782]
[1730817087808,0.8061,2463.2,2462.8,2.84217]
[1730817088009,0.08585775,2463.1,2462.6,5.68488]
[1730817088256,0.08585775,2463.1,2462.9,0.05608764]
[1730817088479,2.92780775,2463.1,2462.4,7.00242304]
[1730817088687,2.92780775,2463.1,2463.0,0.05599363]
[1730817088839,0.74342653,2463.1,2462.3,2.84279]
[1730817089034,0.74342653,2463.1,2463.0,0.05599363]
[1730817089035,0.08585775,2463.1,2463.0,0.05599363]
[1730817089266,0.08585775,2463.1,2462.4,4.15976304]
[1730817089583,0.08585775,2463.1,2462.5,2.84263]
[1730817089750,0.7647,2463.5,2463.0,2.84197]
[1730817090083,0.08585775,2463.4,2463.1,2.89777962]
[1730817090268,0.08585775,2463.4,2463.1,2.89781962]
[1730817090582,0.08585775,2463.4,2463.1,2.89780962]
[1730817090738,0.7647,2463.5,2463.1,2.89782962]
[1730817090939,0.08585775,2463.4,2463.3,2.84171]
[1730817091185,0.08585775,2463.7,2463.4,2.84153]
[1730817091349,0.08585775,2463.7,2463.5,0.05552366]
[1730817091538,0.08585775,2463.7,2463.6,2.84137]
[1730817091739,0.08585775,2463.7,2463.6,0.05535171]
[1730817092912,0.08585775,2463.7,2463.6,2.89672171]
[1730817093067,0.08585775,2463.9,2463.7,2.84116]
[1730817093268,0.08585775,2464.3,2463.9,2.84101]
[1730817093468,2.8408,2464.1,2463.8,0.05487981]
[1730817093673,0.08585775,2464.0,2463.7,2.84125]
[1730817093978,2.84086,2464.1,2463.5,2.84141]
[1730817094305,0.08585775,2464.0,2463.9,2.84102]
[1730817094503,0.08585775,2464.1,2463.9,2.84102]
[1730817094710,0.08585775,2464.3,2463.9,2.84102]
[1730817095018,2.92645775,2464.3,2463.7,2.84118]
[1730817095213,0.08585775,2464.3,2463.5,2.84148]
[1730817095506,2.92643775,2464.3,2463.8,2.84112]
[1730817095876,0.08585775,2464.3,2463.8,0.7588]
[1730817096081,0.08585775,2464.6,2464.0,7.00064304]
[1730817096413,0.7682,2465.4,2465.0,2.83968]
[1730817096565,0.7682,2465.4,2464.6,5.84021]
[1730817096566,0.08585775,2465.3,2464.8,2.83989]
[1730817096905,0.08585775,2465.3,2465.0,2.83967]
[1730817097112,0.08585775,2465.3,2465.0,5.67936]
[1730817097313,0.08585775,2465.3,2465.1,2.83956]
[1730817097470,0.08585775,2465.3,2465.0,5.67935]
[1730817097813,0.08585775,2465.3,2464.2,3.6064]
[1730817097984,0.08585775,2465.3,2464.1,4.15976304]
[1730817097985,2.8401,2464.7,2464.1,4.15976304]
[1730817098180,0.08585775,2464.6,2464.1,7.00053304]
[1730817098437,0.7935,2464.6,2464.2,2.84056]
[1730817098586,3.66960775,2464.6,2464.1,4.15976304]
[1730817098905,0.82935775,2464.6,2464.2,2.84067]
[1730817099108,3.66957775,2464.6,2464.0,2.84083]
[1730817099310,2.84033,2464.5,2463.6,2.84129]
[1730817099614,0.03585775,2464.4,2463.4,2.8416]
[1730817099835,0.7764,2464.1,2463.3,4.15976304]
[1730817100036,2.87682775,2464.0,2463.4,2.84152]
[1730817100326,7.84008,2464.8,2463.4,2.84152]
[1730817100327,0.80195775,2464.4,2463.8,2.8411]
[1730817100534,0.03585775,2464.3,2463.8,2.84106]
[1730817100892,0.03585775,2464.3,2463.9,2.841]
[1730817101113,0.03585775,2464.3,2463.8,2.84105]
[1730817101829,0.03585775,2464.3,2463.9,5.68189]
[1730817102235,0.03585775,2464.3,2463.9,2.84094]
[1730817102729,0.03585775,2464.3,2463.7,2.84115]
[1730817102935,0.03585775,2464.3,2463.5,0.785]
[1730817103141,0.03585775,2464.3,2464.0,2.84087]
[1730817103494,0.03585775,2464.3,2463.8,2.84111]
[1730817103830,0.03585775,2464.3,2463.9,2.84094]
[1730817104033,0.03585775,2464.3,2463.8,5.68212]
[1730817104326,0.03585775,2464.3,2464.0,2.8409]
[1730817104528,0.03585775,2464.5,2464.1,2.84078]
[1730817104732,0.03585775,2464.5,2464.0,2.84087]
[1730817104893,0.03585775,2464.5,2464.1,2.84071]
[1730817105093,0.03585775,2464.5,2464.1,0.05394103]
[1730817105531,0.7562,2464.7,2464.1,0.05394103]
[1730817105532,0.03585775,2464.6,2464.2,2.84058]
[1730817105696,0.03585775,2464.6,2464.1,0.05394103]
[1730817105895,0.03585775,2464.6,2464.3,0.05375318]
[1730817106096,0.7798,2464.5,2464.2,0.0535132]
[1730817106403,0.7798,2464.5,2463.6,2.84126]
[1730817106404,2.84044,2464.4,2464.3,0.05341928]
[1730817106591,2.84044,2464.4,2463.8,2.84108]
[1730817106794,2.84044,2464.4,2463.9,0.053795]
[1730817107237,2.84044,2464.4,2463.9,2.894815]
[1730817107441,0.8149,2464.3,2463.9,0.053795]
[1730817107744,0.8149,2464.3,2463.8,2.84112]
[1730817107899,2.84071,2464.2,2463.5,2.84144]
[1730817108221,0.03585775,2464.1,2463.6,2.8413]
[1730817108422,2.87664775,2464.1,2463.6,2.89537687]
[1730817108621,2.84092,2464.0,2463.6,0.05407687]
[1730817108799,0.03585775,2463.9,2463.6,0.05407687]
[1730817109004,0.03585775,2463.9,2463.5,2.84148]
[1730817109217,0.03585775,2463.9,2463.6,0.05407687]
[1730817109799,0.03585775,2463.9,2463.6,2.84135]
[1730817110015,0.03585775,2464.0,2463.7,0.05398291]
[1730817110205,0.03585775,2464.0,2463.7,2.89522291]
[1730817110407,0.03585775,2464.1,2463.9,2.84095]
[1730817110701,0.03585775,2464.2,2464.1,2.84072]
[1730817110907,0.03585775,2464.6,2464.1,2.84072]
[1730817111149,0.03585775,2464.6,2464.2,2.84067]
[1730817111304,0.03585775,2464.6,2464.2,2.84059]
[1730817111504,2.8401,2464.7,2464.3,0.05341928]
[1730817111733,0.03585775,2464.6,2464.3,0.05341928]
[1730817112041,0.03585775,2464.6,2464.2,2.84059]
[1730817112042,0.03585775,2464.6,2464.4,0.05325302]
[1730817112418,2.87608775,2464.6,2464.1,2.84077]
[1730817112618,2.87608775,2464.6,2464.2,0.05325166]
[1730817112935,2.84006,2464.8,2464.3,2.84055]
[1730817112936,0.03585775,2464.7,2464.3,2.84055]
[1730817113108,0.03585775,2464.7,2464.5,2.84028]
[1730817113306,0.03585775,2464.8,2464.6,2.84013]
[1730817113503,1.25402344,2465.3,2464.6,2.84013]
[1730817113504,0.03585775,2465.1,2464.6,2.89300047]
[1730817113725,0.03585775,2465.2,2465.1,2.83955]
[1730817113933,0.03585775,2465.2,2465.0,2.83974]
[1730817113934,0.03585775,2465.5,2465.2,2.83951]
[1730817114115,0.03585775,2465.5,2465.4,2.83929]
[1730817114320,0.0606463,2465.7,2465.3,2.89136423]
[1730817114504,0.0606463,2465.7,2465.4,0.05188039]
[1730817114505,0.03585775,2465.6,2465.4,0.05188039]
[1730817115201,0.03585775,2465.6,2465.0,2.83969]
[1730817115435,0.03585775,2465.6,2465.2,2.83952]
[1730817115848,0.03585775,2465.6,2465.4,2.83929]
[1730817116032,0.0606463,2465.7,2465.3,0.05197423]
[1730817116234,0.03585775,2465.6,2465.5,0.05119713]
[1730817116531,0.03585775,2465.6,2465.4,0.05129096]
[1730817116719,0.03585775,2465.6,2465.5,0.05119713]
[1730817117046,0.03585775,2465.6,2465.3,2.83941]
[1730817117351,0.03585775,2465.6,2465.5,0.05119713]
[1730817117352,2.87491775,2465.6,2465.5,0.05119713]
[1730817117507,0.61331016,2465.6,2465.4,0.05129096]
[1730817117714,3.45237016,2465.6,2465.5,0.05081904]
[1730817118043,3.45237016,2465.6,2465.0,5.67938]
[1730817118249,2.87491775,2465.6,2465.5,0.05081904]
[1730817118504,2.83921,2465.5,2465.0,2.83969]
[1730817118658,0.03585775,2465.4,2465.0,2.83965]
[1730817118814,0.03585775,2465.4,2464.9,2.83987]
[1730817119014,0.03585775,2465.4,2465.0,2.83972]
[1730817119323,0.03585775,2465.4,2464.9,2.83981]
[1730817119543,0.03585775,2465.5,2465.2,2.8395]
[1730817119853,0.03585775,2465.5,2465.2,2.83945]
[1730817120058,0.0606463,2465.7,2465.6,3.60806]
[1730817120364,0.005,2466.0,2465.9,5.83872]
[1730817120515,0.005,2466.0,2465.9,10.84857642]
[1730817120708,0.005,2466.0,2465.9,10.81794909]
[1730817121257,0.005,2466.9,2466.8,2.83768]
[1730817121566,0.0606463,2467.0,2466.9,6.66086]
[1730817121710,0.0606463,2467.0,2466.9,9.22653229]
[1730817121910,0.0606463,2467.0,2466.9,9.19454329]
[1730817122622,0.0606463,2467.0,2466.9,6.69992729]
[1730817123215,0.0606463,2467.0,2466.9,6.70992729]
[1730817123451,0.0606463,2467.0,2466.9,6.69992729]
[1730817123664,0.0606463,2467.0,2466.9,16.98900929]
[1730817123819,6.3e-06,2467.0,2466.9,16.98900929]
[1730817124018,6.3e-06,2467.0,2466.9,17.86058229]
[1730817124236,6.3e-06,2467.0,2466.9,10.47658529]
[1730817124442,6.3e-06,2467.0,2466.9,6.69992729]
[1730817124630,6.3e-06,2467.0,2466.9,6.78097974]
[1730817124929,6.3e-06,2467.0,2466.9,6.69992729]
[1730817125328,6.3e-06,2467.0,2466.9,11.25096929]
[1730817125531,0.0606463,2468.2,2467.9,2.83641]
[1730817125751,0.0606463,2468.2,2467.9,10.81027304]
[1730817125950,0.0606463,2468.2,2467.9,10.85735445]
[1730817127057,0.0606463,2468.2,2467.9,38.63523645]
[1730817127270,6.32e-06,2468.0,2467.9,23.42937145]
[1730817127576,0.0606463,2468.2,2468.1,5.83618]
[1730817127922,0.0606463,2468.2,2468.1,5.96203295]
[1730817128224,0.0606463,2468.2,2468.1,5.88100938]
[1730817128861,0.0606463,2468.2,2468.1,6.64470938]
[1730817129016,0.7702,2469.2,2469.1,2.83504]
[1730817129218,0.0606463,2469.4,2469.3,2.83481]
[1730817129421,0.0606463,2469.4,2469.3,2.87831132]
[1730817129876,0.0606463,2469.4,2469.3,0.04350132]
[1730817130089,0.0606463,2469.4,2469.3,2.87831132]
[1730817130239,0.0606463,2469.4,2469.3,2.83481]
[1730817130438,0.0606463,2469.4,2469.3,2.87807303]
[1730817130883,0.0606463,2469.4,2469.3,0.04326303]
[1730817131244,0.0606463,2469.4,2469.1,6.99471304]
[1730817131458,0.0606463,2469.4,2469.3,2.87792346]
[1730817131661,0.0606463,2469.4,2469.2,0.04320699]
[1730817131882,0.0606463,2469.4,2469.3,0.04311346]
[1730817132247,0.0606463,2469.4,2468.7,6.99519304]
[1730817132248,2.83483,2469.3,2468.7,4.15976304]
[1730817132747,2.83496,2469.2,2468.7,4.15976304]
[1730817133075,0.8788463,2469.4,2468.7,4.15976304]
[1730817133278,0.0606463,2469.4,2469.2,2.83483]
[1730817133482,0.0606463,2469.4,2469.1,4.15976304]
[1730817133684,0.0606463,2469.4,2468.5,2.84569]
[1730817133685,0.0606463,2469.4,2468.7,4.15976304]
[1730817133975,2.83489,2469.3,2468.7,4.15976304]
[1730817134351,0.0606463,2469.4,2468.8,0.08100569]
[1730817134558,0.0606463,2469.4,2468.7,4.15976304]
[1730817134793,0.0606463,2469.4,2469.3,2.83481]
[1730817134941,0.0606463,2469.4,2469.3,2.95813471]
[1730817135285,0.0606463,2469.4,2469.3,2.87714669]
[1730817135508,0.0606463,2469.4,2469.3,2.95812991]
[1730817135775,0.0606463,2469.4,2469.3,2.87714669]
[1730817137085,0.0606463,2469.4,2469.3,0.04233669]
[1730817137288,0.8128463,2469.4,2469.3,0.04233669]
[1730817137442,4.01228593,2469.4,2468.7,2.83542]
[1730817137647,0.8128463,2469.4,2469.3,0.04233669]
[1730817137960,2.83499,2469.2,2468.6,2.83554]
[1730817138180,0.8128463,2469.4,2468.3,4.15976304]
[1730817138181,2.8353,2468.9,2468.3,4.15976304]
[1730817138340,2.8353,2468.9,2468.0,1.621594]
[1730817138341,5.67109,2468.7,2468.0,1.621594]
[1730817138557,0.7847,2468.8,2468.1,0.08103133]
[1730817138788,0.7847,2468.8,2468.4,2.83583]
[1730817139088,0.7847,2468.8,2468.3,4.15976304]
[1730817139250,2.8953663,2469.4,2468.6,2.8356]
[1730817139251,0.7847,2469.2,2468.6,2.8356]
[1730817139678,2.83539,2468.8,2468.2,2.83603]
[1730817139850,2.83517,2469.0,2468.2,2.83603]
[1730817140177,2.83517,2469.0,2468.2,2.836]
[1730817140549,1.15271863,2469.2,2467.9,5.61203775]
[1730817140550,0.7651,2468.5,2467.9,5.61203775]
[1730817140747,0.55,2469.1,2468.0,0.08102468]
[1730817140748,0.7651,2468.9,2468.0,0.08102468]
[1730817141099,0.7651,2469.2,2468.7,6.99516304]
[1730817141268,0.0606463,2469.4,2468.9,2.83526]
[1730817141644,0.0606463,2469.4,2468.9,0.7679]
[1730817141847,0.0606463,2469.4,2468.9,3.60307]
[1730817142443,0.0606463,2469.4,2469.1,2.83503]
[1730817142643,0.0606463,2469.4,2468.9,5.67037]
[1730817142853,0.0606463,2469.4,2469.3,2.83481]
[1730817143053,0.7804,2470.0,2469.3,2.83481]
[1730817143283,0.7804,2470.0,2469.2,5.83484]
[1730817143284,2.83419,2469.9,2469.2,5.83484]
[1730817143696,2.83419,2469.9,2469.1,3.0]
[1730817144001,2.83419,2469.9,2469.2,3.0]
[1730817144289,0.7804,2470.0,2469.5,2.83457]
[1730817144753,2.8335,2470.5,2469.6,5.8344]
[1730817144948,3.40625763,2470.5,2469.7,2.83432]
[1730817145260,2.83366,2470.3,2469.7,2.83432]
[1730817145466,3.59516,2470.3,2469.5,2.83451]
[1730817145655,0.7615,2470.3,2469.7,2.83433]
[1730817145852,0.7615,2470.3,2469.8,3.0]
[1730817146300,0.7615,2470.3,2469.7,2.83427]
[1730817146586,3.954682,2470.3,2469.5,3.0]
[1730817146789,0.0606463,2470.6,2469.7,3.0]
[1730817146995,0.0606463,2470.6,2470.0,2.8339]
[1730817147206,0.0606463,2470.6,2470.1,2.83383]
[1730817147348,0.0606463,2470.6,2470.1,2.83388]
[1730817147684,0.0606463,2470.6,2470.3,2.83364]
[1730817147886,0.0606463,2470.6,2470.2,2.83376]
[1730817148056,0.0606463,2470.6,2469.9,0.8071]
[1730817148257,0.0606463,2470.6,2470.2,2.83377]
[1730817148451,0.0606463,2470.6,2470.1,3.0]
[1730817148658,0.35003093,2470.6,2469.9,0.8071]
[1730817148995,0.35003093,2470.6,2469.8,2.83415]
[1730817148996,3.61823,2470.5,2469.8,2.83415]
[1730817149298,0.35003093,2470.6,2469.7,2.83435]
[1730817149493,0.35003093,2470.6,2469.9,2.83402]
[1730817149494,0.0606463,2470.6,2469.9,2.83402]
[1730817149699,2.8940663,2470.6,2469.9,2.83402]
[1730817149898,2.8940663,2470.6,2470.0,0.04332205]
[1730817150061,2.83378,2470.2,2470.0,0.04332205]
[1730817150384,3.61847,2470.3,2469.7,2.83435]
[1730817150585,3.61847,2470.3,2469.8,0.04352238]
[1730817150887,2.83395,2470.1,2469.5,2.83448]
[1730817151091,0.7848,2470.3,2469.9,0.04342221]
[1730817151259,0.7848,2470.3,2469.7,2.83428]
[1730817151460,2.83396,2470.1,2470.0,0.04332205]
[1730817151797,5.66764,2470.2,2470.0,0.04043391]
[1730817151969,2.83379,2470.2,2469.6,0.08097568]
[1730817152173,2.83379,2470.2,2469.7,0.04071439]
[1730817152400,2.83379,2470.2,2469.5,0.32285728]
[1730817152710,5.66767,2470.2,2469.6,0.04372275]
[1730817152866,0.7848,2470.3,2469.6,0.04372275]
[1730817153064,2.8335,2470.5,2469.9,2.83403]
[1730817153261,3.7127263,2470.6,2469.9,2.83403]
[1730817153505,2.84584,2468.4,2467.2,3.7934989]
[1730817153674,0.01,2468.2,2468.0,2.83627]
[1730817154003,0.01,2468.4,2467.5,4.15976304]
[1730817154167,0.01,2468.4,2468.0,2.8362]
[1730817154361,0.01,2468.7,2468.0,0.08102656]
[1730817154663,2.83532,2468.9,2467.9,4.15976304]
[1730817154664,2.84536,2468.9,2467.9,4.15976304]
[1730817154970,0.8311,2469.1,2468.3,2.83586]
[1730817154971,0.01,2468.8,2468.3,2.83586]
[1730817155283,0.01,2469.0,2468.4,4.24077838]
[1730817155593,0.8063,2469.7,2469.2,2.83486]
[1730817155792,0.01,2470.1,2469.5,2.8345]
[1730817156124,0.01,2470.2,2469.4,2.8346]
[1730817156289,0.01,2470.2,2469.3,0.7676]
[1730817156501,0.01,2470.2,2469.6,2.83438]
[1730817156708,2.84388,2470.2,2469.4,2.83461]
[1730817157004,2.84388,2470.2,2469.5,2.83453]
[1730817157305,0.01,2470.4,2469.6,2.91542204]
[1730817157466,0.01,2470.4,2469.8,2.83415]
[1730817157671,0.01,2470.4,2469.6,2.83441]
[1730817157672,0.0606463,2470.6,2469.9,0.751]
[1730817157999,0.0606463,2470.6,2470.3,2.8336]
[1730817158200,0.0606463,2470.6,2470.3,2.83357]
[1730817158401,0.0606463,2470.6,2470.1,2.83382]
[1730817158402,0.0706463,2470.6,2470.1,2.83382]
[1730817158616,0.0606463,2470.6,2470.0,3.0]
[1730817158762,0.0606463,2470.6,2470.1,2.83379]
[1730817158967,0.0606463,2470.6,2469.3,3.40908901]
[1730817158968,0.01,2470.2,2469.3,0.57431901]
[1730817159210,0.01,2470.2,2469.5,2.83449]
[1730817159501,0.01,2470.2,2469.6,2.83445]
[1730817159703,0.0606463,2470.6,2470.0,2.83399]
[1730817159934,0.0606463,2470.6,2469.5,2.83458]
[1730817160226,0.0606463,2470.6,2470.3,2.83365]
[1730817160721,0.0706463,2470.6,2470.1,5.6676]
[1730817160882,0.0706463,2470.6,2470.2,2.83375]
[1730817161085,0.0606463,2470.6,2470.5,5.83343]
[1730817161602,0.0606463,2470.6,2470.5,5.8943418]
[1730817162210,0.0606463,2470.6,2470.5,3.0609118]
[1730817162407,0.0606463,2470.6,2470.5,5.8943418]
[1730817162714,0.0606463,2470.6,2470.5,2.8943418]
[1730817163420,0.0606463,2470.6,2470.5,0.0609118]
[1730817163660,0.0606463,2470.6,2470.3,2.83366]
[1730817163824,0.0706463,2470.6,2470.4,0.05463732]
[1730817164121,0.8564463,2470.6,2470.4,0.05463732]
[1730817164488,0.0706463,2470.6,2470.4,2.8335]
[1730817164683,0.0606463,2470.6,2470.5,2.88742113]
[1730817165283,6.3e-06,2470.6,2470.5,7.12813275]
[1730817165536,2.01192802,2471.5,2471.4,2.8324]
[1730817166022,2.01192802,2471.5,2471.3,5.66494]
[1730817166230,2.01192802,2471.5,2471.3,2.89131287]
[1730817166384,2.01192802,2471.5,2471.3,0.05888287]
[1730817166725,2.01192802,2471.5,2471.4,0.32324286]
[1730817167219,2.01192802,2471.5,2471.4,3.15564286]
[1730817167487,2.01192802,2471.5,2471.4,2.8324]
[1730817168238,2.01192802,2471.5,2471.4,3.15514852]
[1730817168670,2.01192802,2471.5,2471.4,2.8324]
[1730817168951,2.00792802,2471.5,2471.4,2.8324]
[1730817169165,2.00792802,2471.5,2471.2,2.83259]
[1730817169166,2.01792802,2471.5,2471.2,2.83259]
[1730817169458,2.01792802,2471.5,2471.4,2.8324]
[1730817169618,2.01792802,2471.5,2471.3,0.05888287]
[1730817169818,2.01792802,2471.5,2471.3,2.89131287]
[1730817170142,2.82112802,2471.5,2471.3,0.05888287]
[1730817170461,3.10324082,2471.5,2471.1,2.83265]
[1730817170616,0.01,2471.2,2470.9,2.83297]
[1730817170821,0.01,2471.0,2470.7,2.83317]
[1730817171053,3.38249,2471.4,2470.6,2.83324]
[1730817171256,0.64757308,2471.3,2470.8,3.15582261]
[1730817171422,0.64757308,2471.3,2470.7,2.83318]
[1730817171768,2.83263,2471.2,2470.8,0.32283518]
[1730817171930,2.83263,2471.2,2470.6,0.32285173]
[1730817172115,0.64757308,2471.3,2470.6,0.32285173]
[1730817172466,3.51888531,2471.2,2470.6,0.32285173]
[1730817172956,0.68625531,2471.2,2470.6,0.32285173]
[1730817173160,3.51895531,2471.2,2470.6,0.32285173]
[1730817173319,2.8327,2471.2,2470.6,0.32285173]
[1730817173724,6.21495,2471.4,2470.7,2.8332]
[1730817174046,3.38244,2471.4,2470.3,0.8171]
[1730817174224,3.38244,2471.4,2470.6,2.83321]
[1730817174562,3.09324082,2471.5,2470.3,0.8171]
[1730817174766,2.81112802,2471.5,2471.1,2.83263]
[1730817174976,2.81112802,2471.5,2471.3,2.83249]
[1730817175187,2.00792802,2471.5,2471.4,2.8324]
[1730817175343,2.00792802,2471.5,2471.4,3.1550778]
[1730817175541,2.00792802,2471.5,2471.4,0.3226778]
[1730817176289,0.50744592,2471.5,2471.4,3.1550778]
[1730817176447,0.50744592,2471.5,2471.4,2.8324]
[1730817176649,0.50744592,2471.5,2471.3,2.83244]
[1730817176849,0.50744592,2471.5,2471.4,2.8324]
[1730817178443,0.50744592,2471.5,2471.3,2.83244]
[1730817178712,0.50744592,2471.5,2471.3,2.83242]
[1730817179847,0.50744592,2471.5,2471.1,2.83268]
[1730817180057,0.50744592,2471.5,2471.1,2.83265]
[1730817180278,0.50744592,2471.5,2470.9,2.83292]
[1730817180483,0.50744592,2471.5,2470.5,2.83337]
[1730817180484,0.8165,2471.4,2470.5,2.83337]
[1730817180647,2.83297,2470.9,2470.6,0.38908074]
[1730817180846,0.8165,2471.4,2470.6,0.06656742]
[1730817181087,5.66542,2471.2,2470.6,2.83325]
[1730817181381,0.8165,2471.4,2470.7,0.06639224]
[1730817181382,2.83275,2471.1,2470.7,0.06639224]
[1730817181581,2.83251,2471.3,2470.7,2.89949224]
[1730817181797,2.83251,2471.3,2470.5,2.83338]
[1730817181798,2.83274,2471.1,2470.5,5.6667]
[1730817181952,0.8165,2471.4,2470.8,0.06621707]
[1730817182298,2.83255,2471.3,2470.8,0.07567665]
[1730817182497,0.8165,2471.4,2470.4,2.83344]
[1730817182498,2.83295,2471.0,2470.4,2.83344]
[1730817182787,2.83271,2471.2,2470.8,0.07567665]
[1730817182963,2.83316,2470.8,2470.5,0.32158892]
[1730817183171,0.8125,2471.4,2470.6,0.08095473]